Cogmind - Beta 10.2 @@@ ROGUE MODE // 2020.12.21 @ 23:34:36 Player: coopco Result: Destroyed by G-47 Trooper with Particle Gun Performance ------------- Evolutions (1) 500 Regions Visited (3) 600 Robots Destroyed (32) 160 Value Destroyed (824) 824 Prototype IDs (0) 0 Alien Tech Used (0) 0 Bonus (131) 131 TOTAL SCORE: 2215 Bonus ------- High Alert Combat Kills 90 Follower Combat Kills 209 Friendly Fire -168 Cogmind --------- Core Integrity 0/400 Matter 264/300 Energy 97/100 System Corruption 0% Temperature Cool (15) Movement Core (50) Location -9/Storage Parts ------- > --- POWER (1) -------- (None) > --- PROPULSION (2) --- (None) > --- UTILITY (4) ------ Improved Targeting Computer Armor Integrity Analyzer > --- WEAPON (2) ------- (None) > --- INVENTORY (4) ---- Medium Storage Unit Large Storage Unit Large Storage Unit Grenade Launcher Peak State ------------ > --- POWER ------------ Light Ion Engine > --- PROPULSION ------- Wheel Compact Wheel > --- UTILITY ---------- Large Storage Unit Improved Targeting Computer Improved Targeting Computer Medium Armor Plating > --- WEAPON ----------- Small Laser Assault Rifle > --- INVENTORY -------- Improved Treads Medium Storage Unit Large Storage Unit Assault Rifle Assault Rifle Grenade Launcher [Rating: 12] Favorites ----------- Power Light Ion Engine Engine Light Ion Engine Propulsion Wheel Treads Improved Treads Wheel Wheel Utility Large Storage Unit Storage Large Storage Unit Processor Improved Targeting Computer Protection Medium Armor Plating Weapon Assault Rifle Energy Gun Small Laser Ballistic Gun Assault Rifle Launcher Grenade Launcher Build | -11 -10 -9 -9 ------- Run | Scr Mat Mat Sto Slots Evolved 2 | . . 2 . Power . | . . . . Propulsion . | . . . . Utility 2 | . . 2 . Weapon . | . . . . Parts Attached 28 | 6 6 . 16 Power 2 | 1 . . 1 Engine 2 | 1 . . 1 Core . | . . . . Reactor . | . . . . Propulsion 5 | 2 1 . 2 Treads 2 | . . . 2 Leg . | . . . . Wheel 3 | 2 1 . . Hover . | . . . . Flight . | . . . . Utility 5 | . 1 . 4 Device . | . . . . Storage 1 | . 1 . . Processor 3 | . . . 3 Hackware . | . . . . Protection 1 | . . . 1 Artifact . | . . . . Weapon 16 | 3 4 . 9 Energy Gun 6 | 1 2 . 3 Energy Cannon . | . . . . Ballistic Gun 5 | 2 . . 3 Ballistic Cannon . | . . . . Launcher 5 | . 2 . 3 Special Weapon . | . . . . Impact Weapon . | . . . . Slashing Weapon . | . . . . Piercing Weapon . | . . . . Special Melee Weapon . | . . . . Unidentified Prototypes . | . . . . Parts Lost 13 | . 1 . 12 Power 2 | . . . 2 Propulsion 5 | . 1 . 4 Utility 1 | . . . 1 Weapon 5 | . . . 5 Highest Loss Streak 5 | . 1 . 5 Average Slot Usage (%) 77 | . 73 66 81 Engine 10 | . 14 11 7 Treads 4 | . . . 8 Wheel 18 | . 28 22 11 Storage 7 | . 2 11 11 Processor 10 | . . . 19 Protection 2 | . . . 5 Energy Gun 7 | . 12 11 3 Ballistic Gun 14 | . 14 11 14 Naked Turns . | . . . . Heaviest Build 31 | 7 22 22 31 Greatest Support 43 | 20 26 26 43 Greatest Overweight (x) 5 | . 2 . 5 Average Overweight (x) . | . . . . Largest Inventory Capacity 10 | 4 10 10 10 Average Capacity 7 | 4 5 10 9 Most Carried 6 | 4 6 6 6 Average Carried 4 | 2 4 5 4 Final Capacity 10 | 4 10 10 4 Final Carried 6 | 4 5 6 4 Class Distribution -------------------- 100% | Mutant Dominant Class ---------------- Mutant | -10/Materials Mutant | -9/Materials Mutant | -9/Storage Resources | -11 -10 -9 -9 ----------- Run | Scr Mat Mat Sto Matter Collected 658 | 269 108 . 281 Remotely . | . . . . Salvage Created 842 | 49 158 . 635 Parts 56 | 2 19 . 35 Haulers Intercepted . | . . . . Recyclers Shooed . | . . . . Parts Field Recycled . | . . . . Retrieved Matter . | . . . . Parts Self-Destructed . | . . . . Prevented . | . . . . Kills | -11 -10 -9 -9 ------- Run | Scr Mat Mat Sto Combat Hostiles Destroyed 25 | 1 8 . 16 Guns 11 | 1 3 . 7 AOE 14 | . 5 . 9 Classes Destroyed 8 | 1 2 . 5 Builder 3 | . 1 . 2 Recycler 1 | . . . 1 Mechanic 1 | . . . 1 Watcher 1 | . . . 1 Swarmer 6 | . 6 . . Grunt 14 | 1 2 . 11 Protector 1 | . . . 1 Sentry 4 | . . . 4 Thug 1 | . . . 1 Best Kill Streak 9 | 1 5 . 9 Combat Bots Only 5 | 1 4 . 5 Max Kills in Single Turn 4 | 1 3 . 4 Gunslinging . | . . . . Exploded 3 | . 3 . 3 Melee . | . . . . Uniques/NPCs Destroyed . | . . . . Combat | -11 -10 -9 -9 -------- Run | Scr Mat Mat Sto Damage Taken 1542 | 34 97 . 1411 Core 410 | . . . 410 Absorbed by Shields 8 | . . . 8 Core Remaining (%) 100 | 100 100 . . Volleys Fired 55 | 3 11 . 41 Largest 2 | 2 2 . 2 Hottest 60 | 60 60 . 60 Shots Fired 92 | 6 21 . 65 Gun 83 | 6 19 . 58 Cannon . | . . . . Launcher 9 | . 2 . 7 Special . | . . . . Kinetic 64 | 3 11 . 50 Thermal 19 | 3 8 . 8 Explosive 9 | . 2 . 7 Electromagnetic . | . . . . Robot Hit Streak 13 | 3 3 . 13 Robot Miss Streak 3 | 1 3 . 2 Penetration Max . | . . . . Secondary Targets 2 | . . . 2 Max Gunslinging Chain 1 | . . . 1 Shots Hit Robots 61 | 3 8 . 50 Core Hits 55 | 2 9 . 44 Critical Hits . | . . . . Critical Kills . | . . . . Critical Parts Destroyed . | . . . . Melee Attacks . | . . . . Impact . | . . . . Slashing . | . . . . Piercing . | . . . . Sneak Attacks . | . . . . Combat Hostiles . | . . . . Follow-up Attacks . | . . . . Damage Inflicted 1886 | 51 263 . 1572 Guns 763 | 51 86 . 626 Cannons . | . . . . Explosions 1117 | . 177 . 940 Melee . | . . . . Ramming 6 | . . . 6 Kinetic 617 | 28 41 . 548 Thermal 146 | 23 45 . 78 Explosive 1117 | . 177 . 940 Electromagnetic . | . . . . Impact . | . . . . Slashing . | . . . . Piercing . | . . . . Highest Corruption . | . . . . Average Corruption . | . . . . Corruption Purged . | . . . . Overload Shots . | . . . . Overflow Damage . | . . . . Projectiles . | . . . . Explosions . | . . . . Melee . | . . . . Knockbacks . | . . . . Impact . | . . . . Kinetic . | . . . . Secondary . | . . . . Self-Inflicted Damage 34 | . 22 . 12 Shots 3 | . 1 . 2 Rammed 1 | . . . 1 Targets Rammed 1 | . . . 1 Kicked . | . . . . Crushed . | . . . . Highest Temperature 21 | 12 . . 21 Average Temperature 7 | 10 . . 5 Received Heat Transfer 534 | 18 6 . 510 Siege Activations . | . . . . Robots Corrupted . | . . . . Combat Hostiles . | . . . . Parts Fried . | . . . . Impact Corruptions . | . . . . Robots Melted . | . . . . Combat Hostiles . | . . . . Parts Melted 1 | . 1 . . Heat Transferred 318 | 50 100 . 168 Parts Sabotaged . | . . . . Parts Stolen . | . . . . Parts Stripped . | . . . . Power Chain Reactions . | . . . . Missiles Intercepted . | . . . . Alert | -11 -10 -9 -9 ------- Run | Scr Mat Mat Sto Peak Influence 645 | 20 329 138 645 Initial 138 | . 13 138 57 Average 259 | 3 157 138 402 Maximum Alert Level 2 | . 1 . 2 Low Security (%) 46 | 100 48 100 29 Level 1 25 | . 51 . 10 Level 2 28 | . . . 60 Level 3 . | . . . . Level 4 . | . . . . Level 5 . | . . . . High Security . | . . . . Max Security . | . . . . Squads Dispatched 5 | . 1 . 4 Investigation . | . . . . Extermination . | . . . . Reinforcement 3 | . 1 . 2 Assault 2 | . . . 2 Garrison . | . . . . Intercept . | . . . . Construction Impeded 1 | . . . 1 Haulers Reinforced . | . . . . Stealth | -11 -10 -9 -9 --------- Run | Scr Mat Mat Sto Distress Signals 5 | . 2 . 3 Communications Jammed . | . . . . Distress Signals . | . . . . Times Spotted 55 | 1 13 . 41 Peak Tracking Total 11 | 1 3 . 11 Tactical Retreats 3 | . 3 . . Traps | -11 -10 -9 -9 ------- Run | Scr Mat Mat Sto Traps Triggered 2 | . . . 2 Indirectly . | . . . . Trap Hack Attempts . | . . . . Triggered . | . . . . Disarmed . | . . . . Reprogrammed . | . . . . Reused . | . . . . Traps Extracted . | . . . . Installed . | . . . . Triggered . | . . . . Machines | -11 -10 -9 -9 ---------- Run | Scr Mat Mat Sto Machines Disabled 2 | . . . 2 Max in Single Turn 2 | . . . 2 Machines Sabotaged . | . . . . Garrisons Compromised . | . . . . Overloaded Fab Kills . | . . . . Fab Network Shutdowns . | . . . . Hacking | -11 -10 -9 -9 --------- Run | Scr Mat Mat Sto Machines Accessed 8 | . 4 . 4 Terminals 8 | . 4 . 4 Fabricators . | . . . . Repair Stations . | . . . . Recycling Units . | . . . . Scanalyzers . | . . . . Garrison Access . | . . . . Total Hacks 26 | . 13 . 13 Successful 16 | . 8 . 8 Failed 10 | . 5 . 5 Catastrophic 3 | . 1 . 2 Database Lockouts . | . . . . Manual 18 | . 6 . 12 Terminals 26 | . 13 . 13 Fabricators . | . . . . Repair Stations . | . . . . Recycling Units . | . . . . Scanalyzers . | . . . . Garrison Access . | . . . . Terminal Hacks 11 | . 6 . 5 Record 7 | . 4 . 3 Level Access Points 1 | . . . 1 Locate Traps 1 | . 1 . . Dispatch Records 1 | . 1 . . Recall Reinforcements 1 | . . . 1 Fabricator Hacks . | . . . . Repair Station Hacks . | . . . . Recycling Unit Hacks . | . . . . Scanalyzer . | . . . . Garrison Access Hacks . | . . . . Unauthorized Hacks 5 | . 2 . 3 Terminals 5 | . 2 . 3 Botnet 5 | . 2 . 3 Fabricators . | . . . . Repair Stations . | . . . . Recycling Units . | . . . . Scanalyzers . | . . . . Garrison Access . | . . . . Data Cores Recovered . | . . . . Used . | . . . . Hacking Detections 8 | . 4 . 4 Full Trace Events . | . . . . Feedback Events . | . . . . Feedback Blocked . | . . . . Robot Schematics Acquired . | . . . . Robots Built . | . . . . Matter . | . . . . Time . | . . . . Total Robot Build Rating . | . . . . Part Schematics Acquired . | . . . . Parts Built . | . . . . Matter . | . . . . Time . | . . . . Total Part Build Rating . | . . . . Parts Repaired . | . . . . Time . | . . . . Parts Recycled . | . . . . Recycled Matter . | . . . . Retrieved Matter . | . . . . Retrieved Components . | . . . . Parts Scanalyzed . | . . . . Part Schematics Acquired . | . . . . Parts Damaged . | . . . . Bothacking | -11 -10 -9 -9 ------------ Run | Scr Mat Mat Sto Used RIF Installer . | . . . . Robots Hacked . | . . . . Non-combat . | . . . . Combat . | . . . . Robot Hacks Applied . | . . . . Relay Couplers Released . | . . . . Robots Rewired . | . . . . Allies Hacked . | . . . . Hacks Repelled . | . . . . Allies | -11 -10 -9 -9 -------- Run | Scr Mat Mat Sto Total Allies 2 | . . . 2 Largest Group 2 | . . . 2 Highest-Rated Group 62 | . . . 62 Highest-Rated Ally 31 | . . . 31 Total Orders . | . . . . Ally Attacks 28 | . . . 28 Total Damage 500 | . . . 500 Kills 7 | . . . 7 Allies Corrupted . | . . . . Allies Melted . | . . . . Intel | -11 -10 -9 -9 ------- Run | Scr Mat Mat Sto Robot Analysis Total . | . . . . Derelict Logs Recovered . | . . . . Drone Launches . | . . . . Drone Recoveries . | . . . . Exploration | -11 -10 -9 -9 ------------- Run | Scr Mat Mat Sto Turns Passed 853 | 75 331 41 406 Spaces Moved 651 | 72 337 45 197 Core 19 | 15 . . 4 Treads 68 | . . . 68 Legs . | . . . . Wheels 564 | 57 337 45 125 Hover . | . . . . Flight . | . . . . Fastest Speed 50 | 50 80 90 50 Average Speed 93 | 73 81 90 120 Slowest Speed 300 | 80 100 90 300 Overloaded Moves . | . . . . Propulsion Burnouts . | . . . . Robots Hopped . | . . . . Cave-ins Triggered . | . . . . Exploration Rate (%) 29 | 6 59 4 47 Regions Visited 3 Branch Regions 1 Pre-discovered Areas . | . . . . Known Exits Taken . | . . . . Unknown Exits Taken 3 | 1 1 1 . Scrap Searched . | . . . . Spaces Dug 4 | . 4 . . Terrain Destroyed 39 | . 11 . 28 Melee . | . . . . Projectile . | . . . . AOE 39 | . 11 . 28 Terrain Rammed . | . . . . Walls Destroyed . | . . . . Machines Disabled . | . . . . Actions | -11 -10 -9 -9 --------- Run | Scr Mat Mat Sto Total 795 | 84 371 45 295 Wait 29 | . 8 . 21 Move 648 | 71 336 44 197 Hop . | . . . . Pick Up 12 | 4 6 1 1 Fast Attach 12 | 5 1 . 6 Attach 5 | . 1 . 4 Detach 2 | . . . 2 Swap 11 | 1 4 . 6 Drop 4 | . 4 . . Fire 55 | 3 11 . 41 Melee . | . . . . Ram . | . . . . Kick . | . . . . Crush 1 | . . . 1 Escape Stasis 16 | . . . 16 Rewire . | . . . . Trap . | . . . . Miscellaneous . | . . . . Route ------- -11/Scrapyard -10/Materials -9/Materials -9/Storage (discovered 1 exit: Mat) History --------- Turn | Location | Event 2 | -11/Scrapyard | Met Revision 17 52 | -11/Scrapyard | Discovered new exit (range 8) 76 | -11/Scrapyard | Entered Materials 257 | -10/Materials | Discovered new exit (range 8) 314 | -10/Materials | Build established: Mutant 407 | -10/Materials | Entered another Materials area 407 | -9/Materials | Evolved 2 slots: Utility x2 407 | -9/Materials | Discovered new exit (range 14) 448 | -9/Materials | Entered Storage 484 | -9/Storage | Met a pair of Derelict thieves 713 | -9/Storage | Identified exit to Materials 714 | -9/Storage | Lost 5 parts (1p2n1u1w) 775 | -9/Storage | Core integrity fell below 50% 799 | -9/Storage | Lost 3 parts (1p2w) 848 | -9/Storage | Core integrity fell below 20% 854 | -9/Storage | Destroyed by G-47 Trooper with Particle Gun Last Messages --------------- 00741_ Assault Rifle destroyed. 00744_ Lgt. Ion Engine destroyed. 00747_ G-34 Mercenary destroyed. 00751_ K-01 Serf collects debris. 00754_ Acquired Sml. Laser. 00768_ Sml. Laser destroyed. 00779_ Y-45 Defender destroyed. 00782_ K-01 Serf collects debris. 00785_ Acquired 52 matter. 00792_ Acquired 41 matter. 00793_ Acquired 37 matter. 00813_ Lgt. Treads destroyed. 00819_ Slammed into U-05 Engineer. 00824_ O-16 Technician: "IFF HANDSHAKE FAILED. SECURING TERMINAL." 00829_ ALERT: Hostiles spotted, dispatching reinforcements to Terminal S004. 00839_ Assault Rifle destroyed. 00846_ U-05 Engineer lays Concrete. 00848_ Imp. Treads destroyed. 00850_ W-16 Scout sends out distress signal. Map ----- +----------------------------------------------------+ | ??????????## ?????# # ## "Y" | | ??????????# ?????#=# ## | | ??????????## ?????#!# """ """ ####### | | ???????????" ?????# + """ """ #????# | | ???????????? ???#=# """ """ #????# | | ???????????? """ ## # #????# | | ???????????? """ + !###########????# | | ???????????? """ ##*#??????????????# | | ????????????? ?##=##??????????##### | | ????????????####+#### #??????????# | | ??????????????# +??????????# ] | | ??????????????# ### #??????????# ] | | ?????????????## #?## ##??????????# ] | | ?????????????#T #??# #??????????# | | ?????????????## a #??# #??????????###### | | ??????????????# #??#+#???????????????? | | ??????????????# Y#? ??????????????? | | ??????????????# # =????????????? | | ??????????????# # #??????????? | | ??????????????# k # [ #??????????? | | ????########### ###########??????????? | | ????? # #?? #???????????? | | ????? """ #u #? #???????????? | | ????# "T" #sks# ????????????? | | ????# == + u/ "??????????????????? | | ????# """ == #@g # "??????????????????? | | ????# """ #g #?"??????????????????? | | ????? """ # #????????????????????? | | ????# # k#????????????????????? | | ????###########s #????????????????????? | | ??????????????# s #????????????????????? | | ??????????????# a#????????????????????? | | ??????????????# #????????????????????? | | ??????????????# #????????????????????? | | ??????????????+g +????????????????????? | | ??????????????# r#????????????????????? | | ??????????????? #????????????????????? | | ??????????????? #????????????????????? | | ??????????????? g #????????????????????? | | ??????????????? #????????????????????? | | ??????????????? #????????????????????? | | ??????????????? ?????????????????????? | | ???????????????????????????????????????? | | ???????????????????????????????????????? | | ???????????????????????????????????????? | | ???????????????????????????????????????? | | ???????????????????????????????????????? | | ???????????????????????????????????????? | | ???????????????????????????????????????? | | ???????????????????????????????????????? | +----------------------------------------------------+ Best States ------------- Heat Dissipation 28 Energy Generation 10 Energy Capacity 125 Matter Stores 300 Matter Capacity 300 Sight Range 16 Terrain Scan Density 10 Armor Coverage 225 Evasion (%) 50 Targeting Accuracy 12 Armor Integrity Analysis 33 Recoil Reduction 2 Item Schematics ----------------- None Robot Schematics ------------------ None Fabricated ------------ Nothing Alien Tech Used ----------------- None Achievements -------------- None Challenges ------------ None Game ------ Seed RelayGyrokineticSegregator Manual? 0 Play Time 00:27:05 Cumulative 0.8 hours Start 2020.12.21 @ 23:06:21 End 2020.12.21 @ 23:34:36 Sessions 1 Manual Loads 0 Difficulty Rogue Special Mode None Game No. 2 Rogue 2 Adventurer 0 Explorer 0 Win Type - Total 0 Types 0/0/0/0/0/0/0/0/0 Lore% 1 Gallery% 1 Achievement% 21 Wizard Run 0 Options --------- ASCII 0 Keyboard 1 Movement Numpad Keybinds 0 Fullscreen 2 Font 18/SmallcapsGlow Map View 76x50 Tactical HUD 1 Map Filters NONE Filters NONE Steam 1 RUN: 2e634c72-633a-4019-a401-bd849170f4d5